bitfinex/quotes_SOLUSD_20240813
["timestamp","ask_amount","ask_price","bid_price","bid_amount"]
[1723552211233,47.8914965,147.16,147.15,0.37647]
[1723552211431,1.1214965,147.16,147.15,0.25098]
[1723552211648,1.1214965,147.16,147.15,8.72549265]
[1723552211852,1.1214965,147.16,147.15,46.92979265]
[1723552212869,46.77,147.26,147.18,0.12549]
[1723552213169,46.77,147.22,147.21,0.25098]
[1723552213329,6.792,147.23,147.22,0.12549]
[1723552213529,27.212439,147.4,147.22,0.12549]
[1723552213760,46.77,147.34,147.22,0.25098]
[1723552214060,6.7859,147.37,147.28,0.12549]
[1723552214374,16.9519,147.48,147.37,20.0]
[1723552214375,6.781,147.48,147.37,20.0]
[1723552214665,79.30631928,147.55,147.34,10.35834233]
[1723552214666,46.77,147.4,147.34,10.35834233]
[1723552214839,6.7887,147.31,147.29,0.12549]
[1723552215170,16.9638,147.38,147.29,0.12549]
[1723552215347,46.77,147.36,147.22,20.0]
[1723552215549,46.77,147.36,147.23,1.55247862]
[1723552215734,6.7895,147.29,147.23,1.55247862]
[1723552215934,6.7867,147.35,147.25,20.0]
[1723552216134,33.8899,147.54,147.33,20.0]
[1723552216435,46.77,147.41,147.26,18.52816235]
[1723552216644,63.7271,147.44,147.27,66.80303696]
[1723552216849,6.7849,147.39,147.31,0.12549]
[1723552217045,6.7859,147.37,147.31,46.92810552]
[1723552217250,16.9571,147.44,147.33,0.12549]
[1723552217468,33.9046,147.48,147.33,1.92789488]
[1723552217654,33.8899,147.54,147.37,0.12549]
[1723552217655,16.9449,147.54,147.37,0.12549]
[1723552217835,16.9449,147.54,147.42,0.12549]
[1723552217836,6.7808,147.48,147.42,0.12549]
[1723552218039,6.7808,147.48,147.38,48.32089855]
[1723552218040,79.30631928,147.55,147.38,1.55089855]
[1723552218562,46.77,147.49,147.38,1.55089855]
[1723552218868,46.77,147.4,147.26,20.0]
[1723552219068,6.7872,147.34,147.27,1.55205696]
[1723552219276,46.77,147.37,147.27,1.55205696]
[1723552219473,46.77,147.51,147.33,20.0]
[1723552219683,6.7822,147.45,147.37,6.7854]
[1723552219983,40.0,147.67,147.4,20.0]
[1723552220280,46.77,147.54,147.41,22.90482827]
[1723552220444,46.77,147.54,147.42,1.55047774]
[1723552220780,46.77,147.6,147.46,0.12549]
[1723552221073,6.775,147.6,147.52,0.12549]
[1723552221292,132.66831374,147.62,147.52,0.12549]
[1723552221580,46.77,147.59,147.52,0.12549]
[1723552221882,92.67271374,147.62,147.54,0.12549]
[1723552222046,132.66831374,147.62,147.54,45.50196]
[1723552222250,132.66831374,147.62,147.46,16.9529]
[1723552222251,6.7783,147.53,147.46,16.9529]
[1723552222461,46.77,147.52,147.4,6.784]
[1723552222677,46.77,147.52,147.41,1.55058292]
[1723552222678,6.7826,147.44,147.41,1.55058292]
[1723552222856,63.7172,147.52,147.41,1.55058292]
[1723552223061,6.7794,147.51,147.41,1.55058292]
[1723552223367,6.7801,147.49,147.41,1.55058292]
[1723552223568,79.30631928,147.55,147.45,6.7817]
[1723552223754,79.30631928,147.55,147.46,21.55005715]
[1723552223955,79.30631928,147.55,147.53,6.7781]
[1723552224160,79.30631928,147.55,147.54,1.54921667]
[1723552224771,86.08361928,147.55,147.54,1.54921667]
[1723552224962,79.30631928,147.55,147.46,20.0]
[1723552225159,126.07631928,147.55,147.47,1.54995204]
[1723552225344,6.78,147.5,147.47,1.54995204]
[1723552225544,6.7806,147.48,147.41,20.0]
[1723552225753,16.9452,147.54,147.41,20.0]
[1723552225954,79.30631928,147.55,147.43,20.0]
[1723552226154,79.30631928,147.55,147.49,20.0]
[1723552226477,79.30631928,147.55,147.46,20.0]
[1723552226679,79.30631928,147.55,147.5,20.0]
[1723552226854,73.74841928,147.55,147.53,20.0]
[1723552227049,73.74841928,147.55,147.54,2.05117667]
[1723552227762,73.74841928,147.55,147.54,1.67470667]
[1723552227963,73.74841928,147.55,147.48,20.0]
[1723552228277,46.77,147.5,147.42,5.7188488]
[1723552228477,46.77,147.5,147.36,20.0]
[1723552228478,63.7196,147.5,147.36,20.0]
[1723552228662,16.9465,147.53,147.43,20.0]
[1723552228870,6.78,147.5,147.41,20.0]
[1723552229049,46.77,147.53,147.39,1.35514569]
[1723552229255,16.9488,147.51,147.36,20.0]
[1723552229579,90.69261928,147.55,147.42,20.0]
[1723552229782,73.74841928,147.55,147.44,46.77]
[1723552229980,73.74841928,147.55,147.46,66.77]
[1723552230159,73.74841928,147.55,147.4,66.77]
[1723552230468,73.74841928,147.55,147.42,20.0]
[1723552230469,46.77,147.54,147.42,20.0]
[1723552230777,16.9462,147.53,147.39,20.0]
[1723552231100,16.9493,147.5,147.35,20.0]
[1723552231255,16.9493,147.5,147.33,46.77]
[1723552231256,16.9529,147.47,147.33,66.77]
[1723552231454,20.0,147.5,147.36,46.77]
[1723552231652,73.74841928,147.55,147.4,20.0]
[1723552231854,73.74841928,147.55,147.46,20.0]
[1723552232065,73.74841928,147.55,147.4,46.77]
[1723552232267,73.74841928,147.55,147.28,46.77]
[1723552232268,63.715,147.54,147.37,66.77]
[1723552232480,63.715,147.54,147.28,20.0]
[1723552232481,46.77,147.47,147.28,20.0]
[1723552232777,16.9551,147.45,147.29,20.0]
[1723552233087,46.77,147.49,147.28,66.77]
[1723552233088,16.9585,147.42,147.28,66.77]
[1723552233250,6.7874,147.34,147.25,20.0]
[1723552233456,6.7882,147.32,147.21,20.0]
[1723552233667,6.7882,147.32,147.2,46.77]
[1723552233668,6.788,147.32,147.22,20.0]
[1723552233877,6.7884,147.31,147.22,20.0]
[1723552234050,16.9656,147.36,147.22,20.0]
[1723552234264,16.9689,147.33,147.18,20.0]
[1723552234463,46.77,147.32,147.2,6.793]
[1723552234783,100.6884,147.42,147.2,16.9835]
[1723552234784,46.77,147.35,147.2,16.9835]
[1723552234952,6.79,147.28,147.2,16.9835]
[1723552235156,6.7907,147.26,147.21,6.7929]
[1723552235387,16.9722,147.3,147.14,66.77]
[1723552235579,46.77,147.33,147.18,20.0]
[1723552235781,46.77,147.33,147.15,1.35792427]
[1723552235782,6.7926,147.22,147.15,1.33321667]
[1723552235983,46.77,147.35,147.12,16.9923]
[1723552235984,63.7483,147.25,147.12,16.9923]
[1723552236192,63.7516,147.22,147.08,16.9971]
[1723552236361,6.7953,147.16,147.1,6.7977]
[1723552236560,63.7516,147.22,147.08,23.796]
[1723552236783,6.7963,147.14,147.08,16.9971]
[1723552236995,63.7553,147.19,147.04,17.0018]
[1723552237194,63.7586,147.16,147.04,17.0018]
[1723552237361,46.77,147.13,147.01,7.09394421]
[1723552237684,6.7981,147.1,147.03,23.8038]
[1723552237906,6.7996,147.07,147.01,6.8019]
[1723552238091,46.77,147.13,146.99,17.0071]
[1723552238270,63.7644,147.11,146.99,23.8102]
[1723552238468,6.7985,147.09,147.02,17.0033]
[1723552238783,6.7985,147.09,146.86,46.77]
[1723552238784,46.77,147.06,146.91,17.0163]
[1723552238984,17.0036,147.03,146.94,6.8052]
[1723552239281,6.8036,146.99,146.92,6.8063]
[1723552239462,46.77,147.03,146.9,17.0181]
[1723552239662,46.77,147.07,146.91,1.36024882]
[1723552240085,46.77,146.98,146.82,20.0]
[1723552240256,6.8097,146.85,146.8,20.0]
[1723552240462,6.8089,146.87,146.81,6.8114]
[1723552240674,46.77,146.92,146.82,6.811]
[1723552240894,51.0326,146.97,146.79,20.0]
[1723552241176,46.77,147.07,146.81,17.0285]
[1723552241177,46.77,146.93,146.81,17.0285]
[1723552241375,6.8115,146.81,146.75,6.8139]
[1723552241579,21.70208458,146.92,146.68,20.0]
[1723552241580,6.8125,146.79,146.68,20.0]
[1723552241786,46.77,146.79,146.69,17.0421]
[1723552242169,46.77,146.76,146.62,6.8202]
[1723552242376,6.8153,146.73,146.67,6.8179]
[1723552242580,6.8153,146.73,146.6,34.1057]
[1723552242581,37.0329,146.78,146.63,37.0492]
[1723552242882,6.8171,146.69,146.63,23.8689]
[1723552243097,20.0,146.78,146.59,20.0]
[1723552243268,20.0,146.78,146.56,0.96386731]
[1723552243269,46.77,146.73,146.56,0.96386731]
[1723552243472,46.77,146.76,146.65,6.8187]
[1723552243672,46.77,146.73,146.63,17.0496]
[1723552243869,46.77,146.7,146.59,17.0543]
[1723552244081,6.8204,146.62,146.55,17.0586]
[1723552244397,46.77,146.61,146.47,1.18871642]
[1723552244581,6.8239,146.55,146.42,46.77]
[1723552244785,6.8221,146.59,146.52,6.8248]
[1723552244968,20.0,146.64,146.49,17.0651]
[1723552245171,6.8237,146.55,146.44,6.8285]
[1723552245422,6.8237,146.55,146.47,6.827]
[1723552245602,6.8237,146.55,146.46,17.0685]
[1723552245897,6.8237,146.55,146.4,1.18928719]
[1723552246077,6.8237,146.55,146.42,6.8295]
[1723552246268,20.0,146.54,146.38,23.9099]
[1723552246476,17.059,146.55,146.42,17.0739]
[1723552246785,6.8274,146.47,146.42,17.0739]
[1723552247098,46.77,146.48,146.38,17.0783]
[1723552247297,6.8316,146.38,146.32,6.8338]
[1723552247596,46.77,146.48,146.32,20.0]
[1723552247801,46.77,146.48,146.36,6.8322]
[1723552247802,6.8297,146.42,146.36,6.8322]
[1723552248005,6.8297,146.42,146.34,17.0833]
[1723552248217,46.77,146.45,146.34,17.0833]
[1723552248382,46.77,146.51,146.32,34.1713]
[1723552248383,17.0672,146.48,146.32,34.1713]
[1723552248703,46.77,146.42,146.28,20.0]
[1723552248878,46.77,146.45,146.33,23.9175]
[1723552249072,66.77,146.44,146.25,1.19047619]
[1723552249284,46.77,146.39,146.25,35.37827619]
[1723552249506,46.77,146.36,146.23,1.6912118]
[1723552249709,66.77,146.44,146.25,20.0]
[1723552249710,46.77,146.39,146.25,20.0]
[1723552249916,6.8304,146.41,146.35,6.8328]
[1723552250086,20.0,146.44,146.28,66.77]
[1723552250412,46.77,146.42,146.35,17.0815]
[1723552250612,46.77,146.42,146.21,20.0]
[1723552250613,46.77,146.38,146.21,20.0]
[1723552250817,6.8374,146.26,146.17,17.1022]
[1723552251003,46.77,146.34,146.15,20.0]
[1723552251211,1.70891873,146.36,146.28,6.8359]
[1723552251501,6.832,146.37,146.31,6.8346]
[1723552251703,46.77,146.39,146.28,17.0896]
[1723552252002,6.8319,146.38,146.24,20.0]
[1723552252178,66.77,146.44,146.23,1.6912118]
[1723552252179,46.77,146.42,146.33,17.0843]
[1723552252614,46.77,146.42,146.34,45.0]
[1723552252815,46.77,146.42,146.31,6.8347]
[1723552252990,6.8295,146.43,146.32,45.0]
[1723552253186,46.77,146.42,146.32,17.0849]
[1723552253507,46.77,146.45,146.35,6.8329]
[1723552253688,17.0679,146.48,146.36,0.12549]
[1723552253888,6.8279,146.46,146.36,0.12549]
[1723552254108,80.8994,146.51,146.39,0.12549]
[1723552254314,46.77,146.44,146.39,0.12549]
[1723552254482,80.8994,146.51,146.39,0.12549]
[1723552254483,46.77,146.47,146.39,0.12549]
[1723552254682,46.77,146.44,146.38,0.12549]
[1723552254911,46.77,146.44,146.39,0.25098]
[1723552255111,19.803734,146.48,146.42,6.8295]
[1723552255112,6.827,146.48,146.42,6.8295]
[1723552255294,6.8278,146.46,146.44,0.12549]
[1723552255610,46.77,146.51,146.44,0.12549]
[1723552255910,33.6389,146.52,146.44,0.12549]
[1723552255911,16.5756,146.52,146.46,6.8276]
[1723552256086,6.3618,146.54,146.48,0.12549]
[1723552256300,46.77,146.52,146.47,0.12549]
[1723552256591,46.77,146.49,146.48,0.12549]
[1723552256792,6.8259,146.5,146.48,0.12549]
[1723552256998,6.8264,146.49,146.47,0.12549]
[1723552257221,46.77,146.52,146.47,0.12549]
[1723552257222,46.77,146.52,146.47,0.25098]
[1723552257382,46.77,146.52,146.48,0.25098]
[1723552257591,51.162,146.6,146.5,0.12549]
[1723552257901,6.183,146.63,146.5,0.25098]
[1723552257902,46.77,146.57,146.5,0.25098]
[1723552258112,46.77,146.6,146.53,0.12549]
[1723552258408,46.77,146.57,146.51,0.12549]
[1723552258607,46.77,146.6,146.53,0.12549]
[1723552258906,33.1656,146.62,146.52,0.12549]
[1723552258907,46.77,146.54,146.52,0.12549]
[1723552259113,46.77,146.58,146.52,0.25098]
[1723552259321,6.8217,146.6,146.54,0.12549]
[1723552259605,46.77,146.61,146.54,0.12549]
[1723552259783,53.5926,146.58,146.54,0.25098]
[1723552259980,46.77,146.61,146.54,0.25098]
[1723552260286,6.183,146.63,146.57,6.8225]
[1723552260484,17.0424,146.7,146.59,0.12549]
[1723552260684,46.77,146.67,146.59,0.12549]
[1723552260915,6.8187,146.66,146.6,6.821]
[1723552261103,46.77,146.7,146.62,17.17599]
[1723552261307,15.3327,146.71,146.64,0.12549]
[1723552261690,46.77,146.7,146.64,0.12549]
[1723552262090,15.2162,146.8,146.7,0.12549]
[1723552262286,6.8143,146.75,146.73,0.12549]
[1723552262493,63.8062,146.75,146.69,0.12549]
[1723552262698,6.8166,146.7,146.69,0.25098]
[1723552262907,6.8152,146.74,146.69,0.50196]
[1723552263217,17.0314,146.79,146.71,0.12549]
[1723552263515,46.77,146.88,146.8,0.12549]
[1723552263825,46.77,146.91,146.86,0.25098]
[1723552264119,53.5773,146.91,146.86,0.25098]
[1723552264321,46.77,146.94,146.87,0.25098]
[1723552264531,46.77,146.94,146.85,0.12549]
[1723552264532,46.77,146.91,146.79,17.0303]
[1723552264825,46.77,146.88,146.81,0.12549]
[1723552265022,63.791,146.88,146.81,0.12549]
[1723552265227,46.77,146.88,146.81,0.12549]
[1723552265539,6.8092,146.86,146.81,0.12549]
[1723552265693,46.77,146.91,146.81,0.12549]
[1723552266002,46.77,146.88,146.81,0.12549]
[1723552266217,48.47229796,146.93,146.68,100.8577]
[1723552266218,17.0261,146.84,146.68,100.8577]
[1723552266430,46.77,146.82,146.65,46.77]
[1723552266723,46.77,146.79,146.67,17.0444]
[1723552266891,6.8149,146.74,146.67,17.0444]
[1723552267091,46.77,146.79,146.62,66.77]
[1723552267426,46.77,146.76,146.65,17.0466]
[1723552267629,6.8171,146.69,146.62,6.8199]
[1723552267944,46.77,146.73,146.61,17.0512]
[1723552268133,20.0,146.72,146.61,17.0512]
[1723552268297,46.77,146.67,146.57,17.056]
[1723552268503,46.77,146.67,146.56,17.0575]
[1723552268727,26.8187,146.66,146.6,6.8208]
[1723552269021,46.77,146.67,146.52,20.0]
[1723552269230,63.8154,146.67,146.51,46.77]
[1723552269399,63.8154,146.67,146.48,20.0]
[1723552269400,46.77,146.64,146.48,40.0]
[1723552269600,46.77,146.64,146.53,6.8244]
[1723552269601,46.77,146.61,146.53,6.8244]
[1723552269907,20.0,146.66,146.55,17.058]
[1723552270108,20.0,146.66,146.53,66.77]
[1723552270109,46.77,146.69,146.59,6.8217]
[1723552270435,6.8188,146.66,146.6,6.8211]
[1723552270617,20.0,146.68,146.58,17.0551]
[1723552270797,46.77,146.63,146.48,20.0]
[1723552271001,6.8236,146.55,146.48,20.0]
[1723552271320,63.8275,146.57,146.46,17.0688]
[1723552271509,63.8275,146.57,146.42,17.0733]
[1723552271713,6.8254,146.51,146.45,23.898]
[1723552271915,46.77,146.53,146.45,17.0702]
[1723552272209,46.77,146.53,146.38,66.77]
[1723552272210,6.8255,146.51,146.43,6.8291]
[1723552272417,46.77,146.56,146.49,6.826]
[1723552272613,46.77,146.56,146.42,20.0]
[1723552272833,53.067,146.59,146.42,20.0]
[1723552273138,53.067,146.59,146.44,46.77]
[1723552273432,6.824,146.55,146.4,20.0]
[1723552273622,46.77,146.56,146.43,34.1438]
[1723552273946,6.8243,146.54,146.39,80.923]
[1723552274234,63.8258,146.58,146.4,20.0]
[1723552274235,46.77,146.53,146.4,20.0]
[1723552274409,46.77,146.56,146.44,20.0]
[1723552274610,6.297,146.59,146.53,17.061]
[1723552274830,46.77,146.66,146.62,6.8203]
[1723552275131,6.8196,146.64,146.59,17.054]
[1723552275301,63.371,146.63,146.54,17.0595]
[1723552275500,16.601,146.63,146.58,0.12549]
[1723552275710,16.601,146.63,146.52,20.0]
[1723552275711,16.601,146.63,146.61,0.25098]
[1723552275922,16.601,146.63,146.62,0.25098]
[1723552276120,16.601,146.63,146.62,0.50196]
[1723552276304,23.4208,146.63,146.62,0.37647]
[1723552276507,16.601,146.63,146.6,0.12549]
[1723552276704,16.601,146.63,146.61,0.12549]
[1723552276931,46.77,146.65,146.61,0.12549]
[1723552276932,6.364,146.69,146.65,0.12549]
[1723552277136,6.364,146.69,146.65,46.43243482]
[1723552277438,70.2029,146.72,146.69,0.12549]
[1723552277740,63.3872,146.72,146.66,0.12549]
[1723552278044,63.3872,146.72,146.68,0.12549]
[1723552278045,16.6172,146.72,146.68,0.12549]
[1723552278246,6.0453,146.77,146.69,17.0423]
[1723552278404,15.8332,146.82,146.74,6.8147]
[1723552278405,6.8124,146.8,146.74,6.8147]
[1723552278606,15.8332,146.82,146.75,1.86391226]
[1723552278836,46.77,146.79,146.72,0.12549]
[1723552279030,15.8332,146.82,146.74,6.8144]
[1723552279031,6.812,146.8,146.74,6.8144]
[1723552279236,62.6032,146.82,146.72,0.37647]
[1723552279443,62.6032,146.82,146.76,0.12549]
[1723552279746,62.6032,146.82,146.75,0.12549]
[1723552279949,46.77,146.79,146.73,0.12549]
[1723552280116,46.77,146.79,146.73,0.50196]
[1723552280314,6.8135,146.77,146.73,0.50196]
[1723552280621,15.8332,146.82,146.77,0.12549]
[1723552280827,46.77,146.89,146.77,0.12549]
[1723552281142,6.8079,146.89,146.84,6.8101]
[1723552281344,1.70235461,146.88,146.82,0.12549]
[1723552281638,46.77,146.9,146.82,0.25098]
[1723552281838,12.9862,146.92,146.87,6.8086]
[1723552282025,6.1798,146.92,146.88,45.50196]
[1723552282223,7.88151656,146.92,146.83,0.12549]
[1723552282423,46.77,146.9,146.84,0.12549]
[1723552282635,6.8092,146.86,146.84,0.25098]
[1723552282950,63.7886,146.9,146.83,0.12549]
[1723552283110,46.77,146.9,146.84,0.12549]
[1723552283314,46.77,146.9,146.84,0.37647]
[1723552283536,6.8096,146.85,146.84,0.25098]
[1723552283713,46.77,146.9,146.84,0.25098]
[1723552283918,6.8096,146.85,146.84,0.25098]
[1723552284221,46.77,146.9,146.84,7.06098]
[1723552284222,6.8073,146.9,146.84,7.06098]
[1723552284427,6.8096,146.85,146.84,0.25098]
[1723552284615,46.77,146.89,146.84,0.12549]
[1723552284815,26.8086,146.88,146.85,0.12549]
[1723552285040,26.8086,146.88,146.86,0.12549]
[1723552285041,6.8087,146.87,146.86,0.12549]
[1723552285220,46.77,146.87,146.75,17.0347]
[1723552285425,6.8129,146.78,146.67,66.77]
[1723552285615,17.0314,146.79,146.67,17.0439]
[1723552285815,46.77,146.81,146.73,17.0378]
[1723552286051,46.77,146.83,146.73,17.0378]
[1723552286255,20.0,146.82,146.73,17.0378]
[1723552286414,6.8119,146.81,146.75,6.8142]
[1723552286612,46.77,146.83,146.78,6.8128]
[1723552286826,46.77,146.89,146.73,66.77]
[1723552287025,6.1798,146.92,146.76,20.0]
[1723552287246,6.1798,146.92,146.86,6.8091]
[1723552287420,6.8082,146.88,146.84,0.12549]
[1723552287621,6.1798,146.92,146.84,0.25098]
[1723552287622,6.8078,146.9,146.84,0.25098]
[1723552287946,46.77,147.0,146.9,0.12549]
[1723552287947,16.564,146.93,146.9,0.12549]
[1723552288251,6.8073,146.9,146.86,0.12549]
[1723552288450,46.77,146.94,146.86,0.25098]
[1723552288656,46.77,146.94,146.88,0.12549]
[1723552289132,6.8059,146.93,146.88,7.05908]
[1723552289336,0.3455205,146.95,146.9,0.12549]
[1723552289526,0.3455205,146.95,146.9,0.25098]
[1723552289735,0.3455205,146.95,146.93,0.12549]
[1723552290043,0.3455205,146.95,146.94,6.93089]
[1723552290246,0.3455205,146.95,146.94,52.30736]
[1723552290491,6.7995,147.07,147.02,0.12549]
[1723552290747,13.3804,147.09,147.07,0.12549]
[1723552290949,6.8003,147.06,147.03,0.12549]
[1723552291251,6.8013,147.03,147.02,0.25098]
[1723552291427,6.8023,147.01,146.95,17.0125]
[1723552291629,1.70057435,147.0,146.96,0.37647]
[1723552291840,48.47102629,146.99,146.87,17.0207]
[1723552292236,46.77,146.96,146.85,6.8092]
[1723552292432,46.77,146.93,146.83,6.8105]
[1723552292742,46.77,146.9,146.79,7.11765268]
[1723552292946,46.77,146.9,146.74,54.0726]
[1723552292947,46.77,146.93,146.82,17.0266]
[1723552293120,46.77,146.9,146.79,17.0311]
[1723552293461,46.77,146.87,146.75,17.0348]
[1723552293659,46.77,146.87,146.72,46.77]
[1723552293867,46.77,146.87,146.66,6.855]
[1723552293868,6.8122,146.8,146.75,17.0355]
[1723552294021,18.7281374,146.85,146.77,6.8133]
[1723552294242,46.77,146.9,146.74,34.072]
[1723552294440,46.77,146.9,146.81,17.0278]
[1723552294671,20.0,146.89,146.81,17.0278]
[1723552294839,6.8088,146.87,146.81,6.8114]
[1723552295041,6.8088,146.87,146.75,46.77]
[1723552295042,20.0,146.89,146.75,46.77]
[1723552295242,20.0,146.89,146.82,17.0267]
[1723552295445,20.0,146.89,146.79,23.8428]
[1723552295744,46.77,146.87,146.73,7.12105156]
[1723552296071,46.77,146.87,146.76,17.0344]
[1723552296072,37.024,146.86,146.76,17.0344]
[1723552296266,37.024,146.86,146.73,34.0753]
[1723552296267,20.0,146.86,146.73,34.0753]
[1723552296574,20.0,146.86,146.81,6.8115]
[1723552296771,46.77,146.93,146.76,20.0]
[1723552296945,46.77,146.93,146.73,34.0753]
[1723552296946,1.70208473,146.92,146.78,46.77]
[1723552297145,6.8091,146.87,146.78,46.77]
[1723552297345,6.8088,146.87,146.81,23.8395]
[1723552297643,6.8088,146.87,146.78,46.77]
[1723552297644,46.77,146.93,146.83,0.12549]
[1723552297869,6.8077,146.9,146.85,6.8092]
[1723552298079,18.71883512,146.92,146.86,0.12549]
[1723552298244,6.8091,146.87,146.83,0.37647]
[1723552298444,6.8091,146.87,146.84,0.12549]
[1723552298667,6.8093,146.86,146.85,0.12549]
[1723552298860,46.77,146.96,146.85,0.37647]
[1723552299068,46.77,146.96,146.86,0.12549]
[1723552299274,6.8074,146.9,146.87,0.12549]
[1723552299566,46.77,146.96,146.87,0.25098]
[1723552299567,17.0133,146.95,146.87,0.25098]
[1723552299764,17.0133,146.95,146.86,0.12549]
[1723552299966,46.77,146.96,146.86,45.37647]
[1723552300148,15.3184,146.97,146.88,0.12549]
[1723552300353,15.3184,146.97,146.92,0.12549]
[1723552300580,6.206,147.06,146.97,0.12549]
[1723552300779,17.0027,147.04,146.88,34.16559]
[1723552300963,6.206,147.06,146.88,34.16559]
[1723552300964,6.8042,146.97,146.92,6.93149]
[1723552301157,48.47121142,147.01,146.93,0.37647]
[1723552301342,48.47121142,147.01,146.94,0.25098]
[1723552301343,46.77,147.01,146.94,0.25098]
[1723552301551,6.8035,146.99,146.96,0.12549]
[1723552301861,6.8028,147.0,146.96,0.25098]
[1723552302045,46.77,147.04,146.98,0.12549]
[1723552302242,6.8041,146.97,146.96,0.12549]
[1723552302445,46.77,147.02,146.96,0.12549]
[1723552302672,23.2058,147.06,146.96,0.99401957]
[1723552302673,46.77,147.05,146.96,0.99401957]
[1723552302875,46.77,147.05,146.98,0.12549]
[1723552303171,6.206,147.06,147.0,0.12549]
[1723552303380,6.8022,147.01,147.0,0.12549]
[1723552303675,6.8044,146.97,146.89,0.12549]
[1723552303975,6.206,147.06,146.89,6.8077]
[1723552303976,6.8056,146.94,146.89,6.8077]
[1723552304154,46.77,146.99,146.84,34.0497]
[1723552304155,6.8046,146.96,146.92,6.806]
[1723552304362,46.77,146.99,146.93,6.8057]
[1723552304555,20.0,146.98,146.88,34.0411]
[1723552304790,20.0,146.98,146.92,17.0153]
[1723552304946,6.8027,147.0,146.95,6.8049]
[1723552305145,46.77,147.02,146.94,17.0131]
[1723552305345,48.47094843,147.02,146.88,34.0411]
[1723552305546,6.8032,146.99,146.94,6.8051]
[1723552305765,20.0,147.01,146.96,0.12549]
[1723552305965,46.77,147.05,146.99,6.8031]
[1723552306149,15.266,147.07,146.95,45.12549]
[1723552306150,15.266,147.07,147.02,0.12549]
[1723552306455,6.7989,147.09,147.04,6.8004]
[1723552306652,6.5512,147.13,147.05,0.25098]
[1723552306851,16.9937,147.12,147.06,0.12549]
[1723552307053,6.8008,147.04,147.01,0.12549]
[1723552307269,6.8017,147.02,147.01,0.25098]
[1723552307464,46.77,147.05,146.88,54.0411]
[1723552307678,48.47049865,147.07,146.94,6.8054]
[1723552307679,63.775,147.02,146.94,6.8054]
[1723552307988,46.77,147.07,146.88,34.0411]
[1723552307989,6.8056,146.94,146.9,17.0178]
[1723552308164,1.70136865,146.98,146.87,17.0212]
[1723552308362,46.77,146.96,146.84,17.0248]
[1723552308577,46.77,146.96,146.76,3.2353]
[1723552308578,6.8083,146.88,146.76,56.76241052]
[1723552308753,63.7855,146.93,146.81,34.0567]
[1723552308948,26.8066,146.92,146.79,66.77]
[1723552309173,20.0,146.92,146.79,46.77]
[1723552309381,20.0,146.92,146.79,66.77]
[1723552309660,6.4589,146.98,146.85,34.0482]
[1723552309883,21.70143881,146.97,146.82,46.77]
[1723552310082,6.8068,146.91,146.86,6.8089]
[1723552310278,20.0,146.97,146.82,46.77]
[1723552310456,6.8055,146.94,146.89,23.8265]
[1723552310665,6.8051,146.95,146.9,7.30916]
[1723552310863,1.70151651,146.96,146.9,0.12549]